[Event "WJCC U20 Open 2019"]
[Site "New Delhi"]
[Date "2019.10.19"]
[Round "6.18"]
[White "Sammed Jaykumar, Shete"]
[Black "Rahul Srivatshav P"]
[Result "1-0"]
[ECO "B48"]
[WhiteElo "2392"]
[BlackElo "2460"]
[Annotator "ChessBase"]
[PlyCount "41"]
[EventDate "2019.10.15"]
[EventType "swiss"]
[EventCountry "IND"]
[SourceTitle "playchess.com"]
[Source "ChessBase"]
[SourceQuality "1"]
[TimeControl "40/5400+30:1800+30"]

1. e4 {[%emt 0:00:00]} c5 {[%emt 0:00:39]} 2. Nf3 {[%emt 0:00:00]} e6 {[%emt 0:00:04]} 3. d4 {[%emt 0:00:00]} cxd4 {[%emt 0:00:03]} 4. Nxd4 {[%emt 0:00:00]} Nc6 {[%emt 0:00:03]} 5. Nc3 {[%emt 0:00:05]} Qc7 {[%emt 0:00:04]} 6. Be3 {[%emt 0:00:05]} a6 {[%emt 0:00:03]} 7. a3 {[%emt 0:00:23]} b5 {[%emt 0:00:11]} 8. Nxc6 {[%emt 0:00:16]} Qxc6 {[%emt 0:00:03]} 9. Be2 {[%emt 0:00:08]} Bb7 {[%emt 0:00:09]} 10. O-O {[%emt 0:00:13]} Ne7 {[%emt 0:01:02]} 11. f4 {[%emt 0:06:29]} Nf5 {[%emt 0:05:58]} 12. Bf2 {[%emt 0:02:38]} Bc5 {[%emt 0:19:58]} 13. Qd3 {[%emt 0:03:48]} Rd8 {[%emt 0:07:20]} 14. Rad1 {[%emt 0:04:46]} h5 {[%emt 0:02:05]} 15. Kh1 {[%emt 0:14:16]} h4 {[%emt 0:14:59]} 16. Bxc5 {[%emt 0:17:46]} Ng3+ {[%emt 0:00:11]} 17. hxg3 {[%emt 0:00:06]} hxg3+ {[%emt 0:00:11]} 18. Kg1 {[%emt 0:00:02]} Qxc5+ {[%emt 0:00:05]} 19. Qd4 {[%emt 0:00:03]} Qe7 {[%emt 0:00:07]} 20. Bg4 {[%emt 0:03:09]} f5 {[%emt 0:00:27]} 21. Bh3 {[%emt 0:02:56]} 1-0

[Event "WJCC U20 Open 2019"]
[Site "New Delhi"]
[Date "2019.10.19"]
[Round "6.19"]
[White "Anuj Shrivatri"]
[Black "Raja Harshit"]
[Result "1-0"]
[ECO "A46"]
[WhiteElo "2390"]
[BlackElo "2440"]
[Annotator "NA"]
[PlyCount "131"]
[EventDate "2019.10.15"]
[EventType "swiss"]
[EventCountry "IND"]
[SourceTitle "playchess.com"]
[Source "ChessBase"]
[SourceQuality "1"]
[TimeControl "40/5400+30:1800+30"]

1. d4 {[%emt 0:00:00]} Nf6 {[%emt 0:00:00]} 2. Nf3 {[%emt 0:00:00]} e6 {[%emt 0:00:36]} 3. g3 {[%emt 0:00:07]} c5 {[%emt 0:02:25]} 4. Bg2 {[%emt 0:00:16]} cxd4 {[%emt 0:01:30]} 5. O-O {[%emt 0:00:14]} d5 {[%emt 0:02:13]} 6. Nxd4 {[%emt 0:00:11]} Be7 {[%emt 0:05:23]} 7. c4 {[%emt 0:00:39]} O-O {[%emt 0:00:34]} 8. cxd5 {[%emt 0:03:52]} Nxd5 {[%emt 0:01:36]} 9. Nb5 $11 {[%emt 0:08:50]} Bd7 {[%emt 0:06:38]} 10. N1c3 {[%emt 0:12:29]} Nxc3 {[%emt 0:00:30]} 11. Nxc3 {[%emt 0:00:30]} Bc6 {[%emt 0:00:30]} 12. Qb3 {[%emt 0:00:30]} Qc8 {[%emt 0:00:30]} 13. Be3 {[%emt 0:03:16]} Bxg2 {[%emt 0:10:54]} 14. Kxg2 {[%emt 0:00:09]} Qc6+ {[%emt 0:05:16]} 15. Kg1 {[%emt 0:03:48]} Na6 {[%emt 0:03:18]} 16. Rac1 {[%emt 0:04:00]} Nc5 {[%emt 0:05:42]} 17. Bxc5 {[%emt 0:03:32]} Qxc5 {[%emt 0:02:49]} 18. Qxb7 {[%emt 0:03:52]} Rab8 {[%emt 0:00:22]} 19. Qf3 {[%emt 0:02:49]} Qa5 {[%emt 0:00:23]} 20. b3 {[%emt 0:06:01]} Rfd8 {[%emt 0:13:03]} 21. Rfd1 {[%emt 0:14:19]} Ba3 {[%emt 0:01:04]} 22. Rb1 {[%emt 0:06:33]} h6 {[%emt 0:01:45]} 23. Kg2 {[%emt 0:01:41]} Be7 {[%emt 0:07:40]} 24. Na4 {[%emt 0:05:20]} Bf6 {[%emt 0:08:08]} 25. Qf4 {[%emt 0:06:09]} Qb5 {[%emt 0:01:49]} 26. Qe4 {[%emt 0:01:54]} Qa5 {[%emt 0:05:32]} 27. Rbc1 {[%emt 0:01:26]} Rd2 {[%emt 0:02:39]} 28. Rc5 {[%emt 0:04:38]} Qd8 {[%emt 0:05:00]} 29. Rxd2 {[%emt 0:00:57]} Qxd2 {[%emt 0:00:02]} 30. Qc2 {[%emt 0:02:23]} Qd7 {[%emt 0:01:35]} 31. Nb2 {[%emt 0:01:30]} Qb7+ {[%emt 0:01:18]} 32. Kg1 {[%emt 0:00:30]} Rd8 {[%emt 0:03:34]} 33. Nd3 {[%emt 0:00:19]} Bd4 {[%emt 0:00:59]} 34. Rc7 {[%emt 0:00:23]} Qa6 {[%emt 0:00:17]} 35. a4 {[%emt 0:01:07]} e5 {[%emt 0:01:19]} 36. Qc6 {[%emt 0:01:54]} Qxc6 {[%emt 0:00:34]} 37. Rxc6 {[%emt 0:00:03]} Rb8 {[%emt 0:00:06]} 38. Nc5 {[%emt 0:01:29]} Bxc5 {[%emt 0:00:54]} 39. Rxc5 {[%emt 0:00:01]} Rxb3 {[%emt 0:00:22]} 40. Rxe5 {[%emt 0:00:51]} Rb7 {[%emt 0:00:38]} 41. Ra5 {[%emt 0:31:26]} g6 {[%emt 0:30:17]} 42. g4 {[%emt 0:00:00]} Kg7 {[%emt 0:00:00]} 43. Ra6 {[%emt 0:00:00]} Rc7 {[%emt 0:00:00]} 44. Kg2 {[%emt 0:00:00]} Rb7 {[%emt 0:00:00]} 45. Kg3 {[%emt 0:00:00]} Rc7 {[%emt 0:00:00]} 46. h4 {[%emt 0:00:00]} Rc2 {[%emt 0:00:00]} 47. e3 {[%emt 0:00:00]} Rc7 {[%emt 0:00:00]} 48. f4 {[%emt 0:00:00]} Rb7 {[%emt 0:00:00]} 49. h5 {[%emt 0:00:00]} gxh5 {[%emt 0:00:00]} 50. gxh5 {[%emt 0:00:00]} Rc7 {[%emt 0:00:00]} 51. e4 {[%emt 0:00:00]} Rd7 {[%emt 0:00:00]} 52. e5 {[%emt 0:00:00]} Rc7 {[%emt 0:00:00]} 53. Kg4 {[%emt 0:02:20]} Rb7 {[%emt 0:00:00]} 54. Kf3 {[%emt 0:01:11]} Rc7 {[%emt 0:00:00]} 55. Kg4 {[%emt 0:00:55]} Rb7 {[%emt 0:00:00]} 56. f5 {[%emt 0:01:34]} Rc7 {[%emt 0:00:00]} 57. Kf3 {[%emt 0:00:34]} Rb7 {[%emt 0:00:00]} 58. Ke4 {[%emt 0:00:19]} Rd7 {[%emt 0:00:00]} 59. Rd6 {[%emt 0:00:31]} Rb7 {[%emt 0:00:00]} 60. Kd5 {[%emt 0:00:52]} Rc7 {[%emt 0:00:00]} 61. Ra6 {[%emt 0:00:50]} Rb7 {[%emt 0:00:00]} 62. Kc6 {[%emt 0:00:54]} Rb1 {[%emt 0:00:00]} 63. Rxa7 {[%emt 0:00:19]} Kf8 {[%emt 0:00:00]} 64. Ra5 {[%emt 0:00:57]} Rf1 {[%emt 0:00:00]} 65. f6 {[%emt 0:00:16]} Kg8 {[%emt 0:00:00]} 66. Rb5 {[%emt 0:00:28]} 1-0

[Event "WJCC U20 Open 2019"]
[Site "New Delhi"]
[Date "2019.10.19"]
[Round "6.21"]
[White "Kuybokarov, Temur"]
[Black "Saurabh Anand"]
[Result "1-0"]
[ECO "C84"]
[WhiteElo "2501"]
[BlackElo "2236"]
[Annotator "ChessBase"]
[PlyCount "73"]
[EventDate "2019.10.15"]
[EventType "swiss"]
[EventCountry "IND"]
[SourceTitle "playchess.com"]
[Source "ChessBase"]
[SourceQuality "1"]
[TimeControl "40/5400+30:1800+30"]

1. e4 {[%emt 0:00:00]} e5 {[%emt 0:00:01]} 2. Nf3 {[%emt 0:00:00]} Nc6 {[%emt 0:00:12]} 3. Bb5 {[%emt 0:00:00]} a6 {[%emt 0:00:19]} 4. Ba4 {[%emt 0:00:09]} Nf6 {[%emt 0:00:14]} 5. O-O {[%emt 0:00:11]} Be7 {[%emt 0:00:19]} 6. d3 {[%emt 0:00:15]} b5 {[%emt 0:01:15]} 7. Bb3 {[%emt 0:00:06]} d6 {[%emt 0:00:16]} 8. a3 {[%emt 0:00:13]} Na5 {[%emt 0:00:39]} 9. Ba2 {[%emt 0:00:10]} c5 {[%emt 0:00:32]} 10. Nc3 {[%emt 0:00:15]} Be6 {[%emt 0:02:46]} 11. Nh4 {[%emt 0:00:11]} O-O {[%emt 0:14:06]} 12. Nf5 {[%emt 0:00:54]} Bxf5 {[%emt 0:04:54]} 13. exf5 {[%emt 0:00:16]} d5 {[%emt 0:00:10]} 14. Bg5 {[%emt 0:04:24]} c4 {[%emt 0:03:31]} 15. Qe2 h6 {[%emt 0:07:35]} 16. Bh4 {[%emt 0:13:43]} d4 {[%emt 0:03:27]} 17. Nb1 {[%emt 0:16:50]} Qc7 {[%emt 0:14:53]} 18. Nd2 {[%emt 0:05:52]} Rac8 {[%emt 0:00:25]} 19. Nf3 {[%emt 0:04:21]} Bd6 {[%emt 0:04:54]} 20. Bxf6 {[%emt 0:04:42]} gxf6 {[%emt 0:00:22]} 21. Nd2 {[%emt 0:01:19]} Kh7 {[%emt 0:02:03]} 22. Ne4 {[%emt 0:00:56]} Be7 {[%emt 0:00:13]} 23. Qh5 {[%emt 0:05:43]} Nb7 {[%emt 0:11:49]} 24. f4 {[%emt 0:01:41]} exf4 {[%emt 0:00:27]} 25. Rf3 {[%emt 0:03:13]} Kg7 {[%emt 0:01:09]} 26. Qg4+ {[%emt 0:06:34]} Kh7 {[%emt 0:00:19]} 27. Qh4 {[%emt 0:03:48]} Kg7 {[%emt 0:05:40]} 28. Rxf4 {[%emt 0:03:07]} h5 {[%emt 0:00:30]} 29. Qg3+ {[%emt 0:05:42]} Kh6 {[%emt 0:00:39]} 30. Qf3 {[%emt 0:01:21]} Kg7 {[%emt 0:01:59]} 31. Rh4 {[%emt 0:02:05]} Rh8 {[%emt 0:00:40]} 32. Re1 {[%emt 0:00:29]} Nc5 {[%emt 0:04:35]} 33. Ng3 {[%emt 0:02:38]} Na4 {[%emt 0:00:34]} 34. Rxh5 {[%emt 0:04:21]} Rcg8 {[%emt 0:01:12]} 35. Rxh8 {[%emt 0:02:19]} Rxh8 {[%emt 0:00:17]} 36. Qe2 {[%emt 0:00:34]} Qe5 {[%emt 0:03:44]} 37. Qg4+ {[%emt 0:00:07]} 1-0

[Event "WJCC U20 Open 2019"]
[Site "New Delhi"]
[Date "2019.10.19"]
[Round "6.22"]
[White "O`Donnell, Conor"]
[Black "Arjun Kalyan"]
[Result "0-1"]
[ECO "D37"]
[WhiteElo "2345"]
[BlackElo "2483"]
[Annotator "ChessBase"]
[PlyCount "94"]
[EventDate "2019.10.15"]
[EventType "swiss"]
[EventCountry "IND"]
[SourceTitle "playchess.com"]
[Source "ChessBase"]
[SourceQuality "1"]
[TimeControl "40/5400+30:1800+30"]

1. d4 {[%emt 0:00:00]} d5 {[%emt 0:00:00]} 2. c4 {[%emt 0:00:00]} e6 {[%emt 0:00:00]} 3. Nc3 {[%emt 0:00:00]} Be7 {[%emt 0:00:12]} 4. Nf3 {[%emt 0:00:54]} Nf6 {[%emt 0:00:12]} 5. Bf4 {[%emt 0:00:12]} O-O {[%emt 0:00:15]} 6. e3 {[%emt 0:00:38]} b6 {[%emt 0:00:16]} 7. Rc1 {[%emt 0:00:28]} Bb7 {[%emt 0:06:13]} 8. cxd5 {[%emt 0:00:29]} Nxd5 {[%emt 0:00:10]} 9. Nxd5 {[%emt 0:00:09]} Qxd5 {[%emt 0:00:13]} 10. a3 {[%emt 0:00:41]} Nd7 {[%emt 0:07:53]} 11. Rxc7 {[%emt 0:04:17]} Rac8 {[%emt 0:10:30]} 12. Rxc8 {[%emt 0:00:08]} Rxc8 {[%emt 0:00:09]} 13. Bd3 {[%emt 0:00:48]} Qa5+ {[%emt 0:18:28]} 14. Ke2 {[%emt 0:04:20]} Ba6 {[%emt 0:00:30]} 15. Re1 {[%emt 0:07:03]} Bxa3 {[%emt 0:10:18]} 16. Qb3 {[%emt 0:19:28]} Bxd3+ {[%emt 0:03:57]} 17. Qxd3 {[%emt 0:00:03]} Bxb2 {[%emt 0:00:17]} 18. Kf1 {[%emt 0:03:43]} Qc3 {[%emt 0:03:11]} 19. Qxc3 {[%emt 0:05:00]} Bxc3 {[%emt 0:08:06]} 20. Rc1 {[%emt 0:00:50]} b5 {[%emt 0:00:29]} 21. Nd2 {[%emt 0:05:58]} Nb6 {[%emt 0:02:25]} 22. Ne4 {[%emt 0:01:22]} Bb4 {[%emt 0:07:38]} 23. Ra1 {[%emt 0:01:13]} Na4 {[%emt 0:03:29]} 24. Rb1 {[%emt 0:04:23]} Rc4 {[%emt 0:02:42]} 25. Bd6 {[%emt 0:10:24]} f5 {[%emt 0:01:41]} 26. Rxb4 Rc1+ {[%emt 0:03:52]} 27. Ke2 {[%emt 0:02:33]} fxe4 {[%emt 0:00:03]} 28. Kd2 {[%emt 0:05:06]} Rc6 {[%emt 0:00:47]} 29. Bg3 {[%emt 0:04:52]} a6 {[%emt 0:00:39]} 30. f3 {[%emt 0:00:04]} exf3 {[%emt 0:02:13]} 31. gxf3 {[%emt 0:00:02]} Kf7 {[%emt 0:01:29]} 32. e4 {[%emt 0:01:06]} Nb6 {[%emt 0:00:09]} 33. Kd3 {[%emt 0:00:42]} Rc1 {[%emt 0:00:52]} 34. Kd2 {[%emt 0:01:32]} Ra1 {[%emt 0:01:12]} 35. Rb3 {[%emt 0:01:23]} Ra2+ {[%emt 0:01:06]} 36. Kc3 {[%emt 0:00:20]} Ke7 {[%emt 0:00:51]} 37. Be5 {[%emt 0:08:38]} g6 {[%emt 0:00:30]} 38. Kb4 {[%emt 0:00:18]} Nc4 {[%emt 0:03:15]} 39. Bf4 {[%emt 0:00:58]} Kd7 {[%emt 0:00:56]} 40. d5 {[%emt 0:00:59]} exd5 {[%emt 0:00:21]} 41. exd5 {[%emt 0:30:11]} Ra4+ {[%emt 0:30:25]} 42. Kc5 {[%emt 0:01:13]} Na5 {[%emt 0:00:08]} 43. Rd3 {[%emt 0:00:24]} Rxf4 {[%emt 0:00:06]} 44. Kb6 {[%emt 0:00:03]} Nc4+ {[%emt 0:00:08]} 45. Kxa6 {[%emt 0:00:07]} Ne5 {[%emt 0:00:06]} 46. Re3 {[%emt 0:00:08]} Kd6 {[%emt 0:00:05]} 47. Kxb5 {[%emt 0:00:06]} Kxd5 {[%emt 0:00:06]} 0-1

[Event "WJCC U20 Open 2019"]
[Site "New Delhi"]
[Date "2019.10.19"]
[Round "6.23"]
[White "Kukelko, Alexey"]
[Black "Vykouk, Jan"]
[Result "1/2-1/2"]
[ECO "B32"]
[WhiteElo "2342"]
[BlackElo "2468"]
[Annotator "ChessBase"]
[PlyCount "77"]
[EventDate "2019.10.15"]
[EventType "swiss"]
[EventCountry "IND"]
[SourceTitle "playchess.com"]
[Source "ChessBase"]
[SourceQuality "1"]
[TimeControl "40/5400+30:1800+30"]

1. e4 {[%emt 0:00:08]} c5 {[%emt 0:00:00]} 2. Nf3 {[%emt 0:00:20]} Nc6 {[%emt 0:00:05]} 3. d4 {[%emt 0:00:20]} cxd4 {[%emt 0:00:08]} 4. Nxd4 {[%emt 0:00:03]} Qb6 {[%emt 0:00:09]} 5. Nb3 {[%emt 0:00:42]} Nf6 {[%emt 0:00:07]} 6. Nc3 {[%emt 0:00:07]} e6 {[%emt 0:00:07]} 7. Qe2 {[%emt 0:01:35]} Bb4 {[%emt 0:01:55]} 8. Bd2 {[%emt 0:00:17]} O-O {[%emt 0:04:31]} 9. a3 {[%emt 0:03:01]} Bxc3 {[%emt 0:00:08]} 10. Bxc3 {[%emt 0:00:04]} e5 {[%emt 0:00:06]} 11. O-O-O {[%emt 0:00:10]} a5 {[%emt 0:00:29]} 12. f3 {[%emt 0:07:17]} a4 {[%emt 0:02:33]} 13. Nd2 {[%emt 0:00:05]} d5 {[%emt 0:01:07]} 14. exd5 {[%emt 0:00:59]} Nxd5 {[%emt 0:01:11]} 15. Nc4 {[%emt 0:00:07]} Qc5 {[%emt 0:17:43]} 16. Bxe5 {[%emt 0:11:35]} Nxe5 {[%emt 0:04:35]} 17. Qxe5 {[%emt 0:01:22]} Be6 {[%emt 0:01:50]} 18. Nd6 {[%emt 0:14:19]} Rad8 {[%emt 0:01:33]} 19. Nc4 {[%emt 0:10:59]} b5 {[%emt 0:11:06]} 20. Nd2 {[%emt 0:00:04]} b4 {[%emt 0:01:17]} 21. axb4 {[%emt 0:02:47]} Qc8 {[%emt 0:01:50]} 22. Bc4 {[%emt 0:14:40]} Nxb4 {[%emt 0:09:22]} 23. Qb5 {[%emt 0:00:44]} Nxc2 {[%emt 0:14:09]} 24. Kxc2 {[%emt 0:03:15]} Rxd2+ {[%emt 0:00:06]} 25. Rxd2 {[%emt 0:00:34]} Bxc4 {[%emt 0:00:05]} 26. Qa5 {[%emt 0:00:36]} Ba2+ {[%emt 0:00:22]} 27. Kd1 {[%emt 0:02:38]} Qc4 {[%emt 0:07:52]} 28. Qc3 {[%emt 0:04:52]} Qe6 {[%emt 0:00:04]} 29. Re2 {[%emt 0:01:17]} Qg6 {[%emt 0:02:23]} 30. Kd2 {[%emt 0:06:43]} Rd8+ {[%emt 0:04:53]} 31. Ke3 {[%emt 0:00:01]} Re8+ {[%emt 0:03:55]} 32. Kf2 {[%emt 0:00:05]} Rxe2+ {[%emt 0:00:04]} 33. Kxe2 {[%emt 0:00:02]} Qxg2+ {[%emt 0:00:08]} 34. Ke3 {[%emt 0:00:01]} h6 {[%emt 0:00:55]} 35. Ra1 {[%emt 0:04:41]} Bb3 {[%emt 0:00:55]} 36. Qc8+ {[%emt 0:00:32]} Kh7 {[%emt 0:00:06]} 37. Qf5+ {[%emt 0:00:02]} g6 {[%emt 0:00:38]} 38. Qe5 {[%emt 0:00:13]} Bc4 {[%emt 0:01:44]} 39. Re1 {[%emt 0:01:40]} 1/2-1/2

[Event "WJCC U20 Open 2019"]
[Site "New Delhi"]
[Date "2019.10.19"]
[Round "6.24"]
[White "Neelash Saha"]
[Black "Batsuren, Dambasuren"]
[Result "1-0"]
[ECO "B10"]
[WhiteElo "2334"]
[BlackElo "2454"]
[Annotator "ChessBase"]
[PlyCount "101"]
[EventDate "2019.10.15"]
[EventType "swiss"]
[EventCountry "IND"]
[SourceTitle "playchess.com"]
[Source "ChessBase"]
[SourceQuality "1"]
[TimeControl "40/5400+30:1800+30"]

1. e4 {[%emt 0:00:06]} c6 {[%emt 0:00:00]} 2. Nc3 {[%emt 0:00:52]} d5 {[%emt 0:00:00]} 3. Qf3 {[%emt 0:00:05]} Nf6 {[%emt 0:02:22]} 4. e5 {[%emt 0:00:16]} Nfd7 {[%emt 0:00:25]} 5. Qg3 {[%emt 0:00:15]} e6 {[%emt 0:02:28]} 6. d4 {[%emt 0:00:05]} Qb6 {[%emt 0:02:56]} 7. Nf3 {[%emt 0:00:25]} Na6 {[%emt 0:08:11]} 8. Be2 {[%emt 0:02:03]} Nb4 {[%emt 0:04:28]} 9. Bd1 {[%emt 0:00:21]} c5 {[%emt 0:00:13]} 10. dxc5 {[%emt 0:00:55]} Nxc5 {[%emt 0:00:16]} 11. O-O {[%emt 0:00:28]} Nc6 {[%emt 0:01:49]} 12. Be2 {[%emt 0:07:52]} a6 {[%emt 0:00:48]} 13. Rd1 {[%emt 0:03:10]} h6 {[%emt 0:02:29]} 14. Rb1 {[%emt 0:18:32]} Qc7 {[%emt 0:03:00]} 15. Be3 {[%emt 0:00:55]} Qa5 {[%emt 0:16:48]} 16. a3 {[%emt 0:02:57]} Nd7 {[%emt 0:04:29]} 17. h4 {[%emt 0:07:38]} g6 {[%emt 0:04:27]} 18. Bd3 {[%emt 0:06:41]} Bg7 {[%emt 0:02:53]} 19. Bf4 {[%emt 0:01:54]} Ne7 {[%emt 0:01:57]} 20. Ne2 {[%emt 0:06:09]} Qc7 {[%emt 0:01:46]} 21. b4 {[%emt 0:02:42]} Nb6 {[%emt 0:02:07]} 22. Nh2 {[%emt 0:01:03]} Bd7 {[%emt 0:00:48]} 23. Ng4 {[%emt 0:00:23]} O-O-O {[%emt 0:00:27]} 24. Ne3 {[%emt 0:01:47]} Kb8 {[%emt 0:13:09]} 25. b5 {[%emt 0:01:01]} a5 {[%emt 0:00:29]} 26. Rdc1 {[%emt 0:03:05]} Nc4 {[%emt 0:03:54]} 27. Rb3 {[%emt 0:03:23]} Rdg8 {[%emt 0:04:35]} 28. Rc3 {[%emt 0:05:13]} Bxb5 {[%emt 0:01:52]} 29. Rb1 {[%emt 0:00:04]} Ba6 {[%emt 0:00:16]} 30. Nxc4 {[%emt 0:01:54]} dxc4 {[%emt 0:00:38]} 31. Be4 {[%emt 0:00:03]} Rd8 {[%emt 0:01:41]} 32. Re3 {[%emt 0:01:22]} Nc6 {[%emt 0:04:30]} 33. Nc3 {[%emt 0:01:03]} Nd4 {[%emt 0:00:41]} 34. Nd5 {[%emt 0:01:33]} Rxd5 {[%emt 0:03:33]} 35. Bxd5 {[%emt 0:00:04]} Nf5 {[%emt 0:00:13]} 36. Qf3 {[%emt 0:00:12]} Rd8 {[%emt 0:01:16]} 37. Be4 {[%emt 0:00:03]} Nxe3 {[%emt 0:00:08]} 38. Qxe3 {[%emt 0:00:06]} Bf8 {[%emt 0:00:22]} 39. Qf3 {[%emt 0:01:28]} Rc8 {[%emt 0:03:55]} 40. a4 {[%emt 0:07:20]} Qd7 {[%emt 0:02:31]} 41. c3 {[%emt 0:30:38]} Rc7 {[%emt 0:05:22]} 42. Be3 {[%emt 0:00:00]} Bc5 {[%emt 0:03:23]} 43. Rd1 {[%emt 0:00:00]} Qe7 {[%emt 0:02:24]} 44. Bxh6 {[%emt 0:00:00]} Qxh4 {[%emt 0:00:52]} 45. Bg7 {[%emt 0:00:00]} Qh5 {[%emt 0:02:56]} 46. g4 {[%emt 0:00:00]} Qh4 {[%emt 0:01:35]} 47. Bf6 {[%emt 0:00:00]} Qh6 {[%emt 0:00:17]} 48. Kg2 {[%emt 0:00:00]} Be7 {[%emt 0:03:51]} 49. Bxe7 {[%emt 0:00:00]} Rxe7 {[%emt 0:00:05]} 50. Rd8+ {[%emt 0:00:00]} Ka7 {[%emt 0:01:34]} 51. Qd1 {[%emt 0:00:00]} 1-0

[Event "WJCC U20 Open 2019"]
[Site "New Delhi"]
[Date "2019.10.19"]
[Round "6.25"]
[White "Pranav, V."]
[Black "Tica, Sven"]
[Result "1-0"]
[ECO "B12"]
[WhiteElo "2308"]
[BlackElo "2418"]
[Annotator "NA RC"]
[PlyCount "93"]
[EventDate "2019.10.15"]
[EventType "swiss"]
[EventCountry "IND"]
[SourceTitle "playchess.com"]
[Source "ChessBase"]
[SourceQuality "1"]
[TimeControl "40/5400+30:1800+30"]

1. e4 {[%emt 0:00:00]} c6 {[%emt 0:00:00]} 2. d4 {[%emt 0:00:00]} d5 {[%emt 0:00:00]} 3. e5 {[%emt 0:00:02]} Bf5 {[%emt 0:00:00]} 4. Nf3 {[%emt 0:00:11]} e6 {[%emt 0:00:00]} 5. Be2 {[%emt 0:00:06]} Ne7 {[%emt 0:00:05]} 6. O-O {[%emt 0:01:16]} h6 {[%emt 0:00:05]} 7. Nbd2 {[%emt 0:01:23]} Nd7 {[%emt 0:00:07]} 8. c3 {[%emt 0:01:24]} Bh7 {[%emt 0:00:08]} 9. Re1 {[%emt 0:01:42]} Nf5 {[%emt 0:00:53]} 10. Nf1 {[%emt 0:01:09]} Be7 {[%emt 0:00:50]} 11. Bd3 {[%emt 0:03:35]} c5 {[%emt 0:06:32]} 12. Ng3 {[%emt 0:03:58]} Nxg3 {[%emt 0:00:42]} 13. Bxh7 {[%emt 0:00:10]} Rxh7 {[%emt 0:00:17]} 14. hxg3 {[%emt 0:00:10]} cxd4 {[%emt 0:03:51]} 15. cxd4 {[%emt 0:02:00]} Rc8 {[%emt 0:03:24]} 16. Be3 {[%emt 0:09:41]} Nb8 {[%emt 0:04:25]} 17. b4 {[%emt 0:02:05]} Nc6 {[%emt 0:13:00]} 18. a3 {[%emt 0:01:37]} Qb6 {[%emt 0:05:24]} 19. Rc1 {[%emt 0:02:48]} Rh8 {[%emt 0:02:04]} 20. Nd2 {[%emt 0:04:13]} Kd7 {[%emt 0:02:57]} 21. Nb3 {[%emt 0:03:51]} Qa6 {[%emt 0:05:21]} 22. Rc3 {[%emt 0:01:00]} b6 {[%emt 0:03:30]} 23. Bd2 {[%emt 0:07:37]} Rc7 {[%emt 0:29:02]} 24. Qb1 {[%emt 0:03:47]} Rb8 {[%emt 0:04:14]} 25. Rec1 {[%emt 0:03:12]} Bd8 {[%emt 0:00:31]} 26. Qh7 {[%emt 0:01:00]} Rbc8 {[%emt 0:02:14]} 27. Rf3 {[%emt 0:02:52]} Ne7 {[%emt 0:02:03]} 28. Rb1 {[%emt 0:00:31]} Rc2 {[%emt 0:01:27]} 29. Qxg7 {[%emt 0:01:26]} Ra2 {[%emt 0:03:38]} 30. Qxf7 {[%emt 0:00:54]} Rcc2 {[%emt 0:01:40]} 31. b5 {[%emt 0:01:47]} Qxa3 {[%emt 0:00:24]} 32. Nc5+ {[%emt 0:00:23]} bxc5 {[%emt 0:00:09]} 33. Rxa3 {[%emt 0:00:06]} Rxa3 {[%emt 0:00:04]} 34. dxc5 {[%emt 0:00:17]} Rxc5 {[%emt 0:00:58]} 35. Bxh6 {[%emt 0:00:17]} d4 {[%emt 0:00:36]} 36. Rd1 {[%emt 0:00:34]} d3 {[%emt 0:00:07]} 37. g4 {[%emt 0:00:54]} Rxe5 {[%emt 0:00:22]} 38. Qh7 {[%emt 0:00:30]} Rd5 {[%emt 0:01:14]} 39. g5 {[%emt 0:00:22]} Rf5 {[%emt 0:00:32]} 40. g6 {[%emt 0:01:39]} Bb6 {[%emt 0:00:16]} 41. Be3 {[%emt 0:30:30]} Bxe3 {[%emt 0:32:26]} 42. fxe3 {[%emt 0:00:16]} Rxb5 {[%emt 0:00:24]} 43. g7 {[%emt 0:02:05]} Rg5 {[%emt 0:00:08]} 44. Qh4 {[%emt 0:00:33]} Rg6 {[%emt 0:00:31]} 45. Qb4 {[%emt 0:00:56]} Ra2 {[%emt 0:00:49]} 46. Qb5+ {[%emt 0:00:11]} Kd6 {[%emt 0:00:49]} 47. Qxd3+ {[%emt 0:00:06]} 1-0

[Event "WJCC U20 Open 2019"]
[Site "New Delhi"]
[Date "2019.10.19"]
[Round "6.26"]
[White "Percivaldi, Martin"]
[Black "Milikow, Yoav"]
[Result "1-0"]
[ECO "A50"]
[WhiteElo "2391"]
[BlackElo "2199"]
[Annotator "NA"]
[PlyCount "79"]
[EventDate "2019.10.15"]
[EventType "swiss"]
[EventCountry "IND"]
[SourceTitle "playchess.com"]
[Source "ChessBase"]
[SourceQuality "1"]
[TimeControl "40/5400+30:1800+30"]

1. d4 Nf6 2. c4 g6 3. f3 Nc6 4. d5 Ne5 5. e4 d6 6. Nc3 Bg7 7. f4 Ned7 8. Nh3 O-O 9. Be2 e6 10. dxe6 fxe6 11. Be3 b6 12. O-O Bb7 13. Bf3 a6 14. Ng5 Re8 15. Qc2 Ra7 16. Rad1 Qa8 17. Rfe1 Bc6 18. Bc1 e5 19. f5 h6 20. Ne6 gxf5 21. exf5 Kh7 22. Nd5 Bxd5 23. Bxd5 Qc8 24. Re3 c6 25. Rg3 Nc5 26. Qd2 Nxe6 27. Bxe6 Rxe6 28. fxe6 Qxe6 29. Qd3+ e4 30. Qxd6 Qxc4 31. Rf1 Rf7 32. Qf4 Kh8 33. Qf5 Qd5 34. Qg6 Qc5+ 35. Be3 Qf8 36. Bxh6 Bxh6 37. Rh3 Qg7 38. Rxh6+ Kg8 39. Rxf6 Rxf6 40. Qxf6 1-0